fUSD/lending_fUSD_20251120
["ID","MTS","AMOUNT","RATE_DAILY","PERIOD"]
[394476238,1763617419712,663.0,0.00054794,30]
[394476239,1763617419893,663.0,0.00054794,30]
[394476240,1763617419982,250.112164,0.00042027,30]
[394476241,1763617420065,663.0,0.00054794,30]
[394476242,1763617420254,663.0,0.00054794,30]
[394476243,1763617420431,663.0,0.00054794,30]
[394476244,1763617420524,150.0,0.00054794,30]
[394476245,1763617420603,663.0,0.00054794,30]
[394476246,1763617420781,663.0,0.00054794,30]
[394476247,1763617420979,663.0,0.00054794,30]
[394476248,1763617421374,663.0,0.00054794,30]
[394476249,1763617421546,663.0,0.00054794,30]
[394476250,1763617421738,663.0,0.00054794,30]
[394476251,1763617421952,673.94790388,0.00054794,30]
[394476252,1763617422838,151.0,0.00039,120]
[394476253,1763617423133,150.0,0.00054794,30]
[394476254,1763617425284,500.0,0.00054794,30]
[394476255,1763617425451,500.0,0.00054794,30]
[394476256,1763617425621,500.0,0.00054794,30]
[394476257,1763617425784,500.0,0.00054794,30]
[394476258,1763617425954,230.64385222,0.00054794,30]
[394476259,1763617427101,254.55994729,0.00054794,30]
[394476260,1763617428529,150.0,0.00054794,30]
[394476261,1763617428710,150.0,0.00054794,30]
[394476262,1763617429070,150.0,0.00054794,30]
[394476263,1763617429230,186.39397685,0.00054794,30]
[394476264,1763617429719,2716.99,0.000395,30]
[394476265,1763617430166,2716.99,0.00052,30]
[394476266,1763617430851,5520.0,0.000517,120]
[394476267,1763617431051,500.0,0.00054794,30]
[394476268,1763617431089,5520.0,0.000508,120]
[394476269,1763617431228,500.0,0.00054794,30]
[394476270,1763617431434,216.44084954,0.00054794,30]
[394476271,1763617431702,2261.79571427,0.00049166,120]
[394476272,1763617432221,500.0,0.00054794,30]
[394476273,1763617432392,500.0,0.00054794,30]
[394476274,1763617432585,500.0,0.00054794,30]
[394476275,1763617432757,315.67396154,0.00054794,30]
[394476276,1763617433410,150.0,0.00054794,30]
[394476277,1763617433638,150.0,0.00054794,30]
[394476278,1763617433868,150.0,0.00054794,30]
[394476279,1763617434086,154.66376572,0.00054794,30]
[394476280,1763617434890,150.0,0.00054794,30]
[394476281,1763617435070,151.45128468,0.00054794,30]
[394476282,1763617435993,500.0,0.00054794,30]
[394476283,1763617436157,500.0,0.00054794,30]
[394476284,1763617436862,500.0,0.00054794,30]
[394476285,1763617437058,500.0,0.00054794,30]
[394476286,1763617437258,174.03996946,0.00054794,30]
[394476287,1763617438271,152.0214574,0.00054794,30]
[394476288,1763617439169,150.0,0.00054794,30]
[394476289,1763617439335,150.0,0.00054794,30]
[394476290,1763617439533,150.0,0.00054794,30]
[394476291,1763617439715,150.0,0.00054794,30]
[394476292,1763617439905,150.0,0.00054794,30]
[394476293,1763617440082,156.05141488,0.00054794,30]
[394476294,1763617440716,500.0,0.00054794,30]
[394476295,1763617440898,500.0,0.00054794,30]
[394476296,1763617441081,360.15703236,0.00054794,30]
[394476297,1763617441739,500.0,0.00054794,30]
[394476298,1763617441938,500.0,0.00054794,30]
[394476299,1763617442026,500.0,0.00054794,30]
[394476300,1763617442301,480.821903,0.00054794,30]
[394476301,1763617443239,150.0,0.00054794,30]
[394476302,1763617443285,150.0,0.00054794,30]
[394476303,1763617443931,500.0,0.00054794,30]
[394476304,1763617444001,500.0,0.00054794,30]
[394476305,1763617444087,500.0,0.00054794,30]
[394476306,1763617444243,500.0,0.00054794,30]
[394476307,1763617444525,285.51871829,0.00042027,120]
[394476308,1763617444657,252.90896659,0.00054794,30]
[394476309,1763617445270,500.0,0.00054794,30]
[394476310,1763617445413,500.0,0.00054794,30]
[394476311,1763617445496,500.0,0.00054794,30]
[394476312,1763617445586,500.0,0.00054794,30]
[394476313,1763617445674,500.0,0.00054794,30]
[394476314,1763617445751,500.0,0.00054794,30]
[394476315,1763617446408,415.29645176,0.00054794,30]
[394476316,1763617447028,151.40528151,0.00054794,30]
[394476317,1763617447863,150.78,0.00042027,120]
[394476318,1763617448044,186.736251,0.00039,120]
[394476319,1763617448239,500.0,0.00054794,30]
[394476320,1763617448415,500.0,0.00054794,30]
[394476321,1763617448456,186.736251,0.000395,120]
[394476322,1763617448582,373.83119632,0.00054794,30]
[394476323,1763617449224,204.95656587,0.00054794,30]
[394476324,1763617449825,151.0,0.00042027,120]
[394476325,1763617449997,343.865406,0.00042027,35]
[394476326,1763617450111,151.0,0.00042027,120]
[394476327,1763617450290,343.865406,0.00042027,35]
[394476328,1763617450408,151.0,0.00042027,120]
[394476329,1763617450487,151.0,0.00042027,120]
[394476330,1763617450668,343.865406,0.00042027,35]
[394476331,1763617450718,159.759124,0.00042027,120]
[394476332,1763617450811,151.0,0.00042027,120]
[394476333,1763617450855,186.736251,0.00039,120]
[394476334,1763617450948,343.865406,0.00042027,35]
[394476335,1763617450988,150.0,0.00054794,30]
[394476336,1763617451092,151.0,0.00042027,120]
[394476337,1763617451151,186.736251,0.000395,120]
[394476338,1763617451325,343.865406,0.00042027,35]
[394476339,1763617451630,343.865406,0.00042027,35]
[394476340,1763617452044,343.865406,0.00042027,35]
[394476341,1763617452365,343.865406,0.00042027,35]
[394476342,1763617452464,186.736251,0.00039,120]
[394476343,1763617452896,343.865406,0.00042027,35]
[394476344,1763617452974,186.736251,0.000395,120]
[394476345,1763617453204,343.865406,0.00042027,35]
[394476346,1763617453549,343.865406,0.00042027,35]
[394476347,1763617453954,343.865406,0.00042027,35]
[394476348,1763617454186,186.736251,0.00039,120]
[394476349,1763617454248,343.865406,0.00042027,35]
[394476350,1763617454472,186.736242,0.000395,120]
[394476351,1763617454849,343.865406,0.00042027,35]
[394476352,1763617455138,343.865406,0.00042027,35]
[394476353,1763617455333,151.0,0.00042027,120]
[394476354,1763617455530,343.865406,0.00042027,35]
[394476355,1763617455712,151.0,0.00042027,120]
[394476356,1763617455870,1144.91807186,0.00054,30]
[394476357,1763617455922,343.865406,0.00042027,35]
[394476358,1763617455973,1000.0,0.00054,120]
[394476359,1763617456029,151.0,0.00042027,120]
[394476360,1763617456227,343.865406,0.00042027,35]
[394476361,1763617456391,151.0,0.00042027,120]
[394476362,1763617456650,343.865406,0.00042027,35]
[394476363,1763617456743,151.0,0.00042027,120]
[394476364,1763617456952,166.0,0.00052,120]
[394476365,1763617457016,343.865398,0.00042027,35]
[394476366,1763617457085,151.0,0.00042027,120]
[394476367,1763617457453,166.0,0.00054658,120]
[394476368,1763617457517,151.0,0.00042027,120]
[394476369,1763617457700,151.0,0.00042027,120]
[394476370,1763617457993,151.0,0.00042027,120]
[394476371,1763617458868,151.0,0.00042027,120]
[394476372,1763617459107,151.0,0.00042027,120]
[394476373,1763617459698,151.0,0.00042027,120]
[394476374,1763617459993,151.0,0.00042027,120]
[394476375,1763617460311,219.630492,0.00042027,120]
[394476376,1763617460887,151.0,0.0003095,31]
[394476377,1763617461080,-250.0,0.00016031,2]
[394476378,1763617462394,5520.0,0.000517,120]
[394476379,1763617462640,5520.0,0.000508,120]
[394476380,1763617463230,151.0,0.00042027,120]
[394476381,1763617463566,151.0,0.00042027,120]
[394476382,1763617463665,151.0,0.00042027,120]
[394476383,1763617463879,265.523097,0.00042027,120]
[394476384,1763617465310,280.55057718,0.00042027,120]
[394476385,1763617465711,300.0,0.00054,120]
[394476386,1763617465794,151.0,0.00042027,120]
[394476387,1763617466101,270.508644,0.00042027,120]
[394476388,1763617467212,151.0,0.00042027,120]
[394476389,1763617467439,151.0,0.00042027,120]
[394476390,1763617467558,151.0,0.0003095,31]
[394476391,1763617467606,226.530003,0.00042027,120]
[394476392,1763617467861,287.98212,0.000395,120]
[394476393,1763617468022,154.620495,0.00042027,120]
[394476394,1763617468672,151.0,0.00042027,120]
[394476395,1763617469097,153.506029,0.00042027,120]
[394476396,1763617470203,212.642535,0.0003095,31]
[394476397,1763617470681,212.642535,0.000395,120]
[394476398,1763617470990,212.642535,0.000395,120]
[394476399,1763617471999,212.642535,0.0003095,31]
[394476400,1763617472309,212.642535,0.000395,120]
[394476401,1763617472650,151.0,0.0003095,31]
[394476402,1763617472695,212.642535,0.000395,120]
[394476403,1763617473680,212.642535,0.0003095,31]
[394476404,1763617473976,212.642535,0.000395,120]
[394476405,1763617474302,212.642535,0.000395,120]
[394476406,1763617475098,152.94,0.000321,30]
[394476407,1763617475227,212.642535,0.0003095,31]
[394476408,1763617475415,152.94,0.000339,30]
[394476409,1763617475586,212.642535,0.000395,120]
[394476410,1763617475755,150.0,0.00054284,30]
[394476411,1763617475802,152.94,0.000361,30]
[394476412,1763617475844,1000.0,0.00054196,30]
[394476413,1763617475902,212.642535,0.000395,120]
[394476414,1763617475966,1000.0,0.00054175,30]
[394476415,1763617476471,152.94,0.000381,30]
[394476416,1763617476507,1000.0,0.00054192,30]
[394476417,1763617476561,1000.0,0.00054736,30]
[394476418,1763617476684,1000.0,0.00053258,30]
[394476419,1763617476725,1000.0,0.00054781,30]
[394476420,1763617481740,1014.96,0.000396,30]
[394476421,1763617485564,151.0,0.0003095,31]
[394476422,1763617485863,151.0,0.000395,120]
[394476423,1763617486164,151.0,0.000395,120]
[394476424,1763617489407,300.0,0.00054,120]
[394476425,1763617489670,151.0,0.00042027,120]
[394476426,1763617489963,151.0,0.00042027,120]
[394476427,1763617490243,151.0,0.00042027,120]
[394476428,1763617490718,151.0,0.00042027,120]
[394476429,1763617491081,151.0,0.00042027,120]
[394476430,1763617491405,-5484.26850309,0.00016034,2]
[394476431,1763617491469,151.0,0.00042027,120]
[394476432,1763617491498,-10000.01,0.00016034,2]
[394476433,1763617492022,151.0,0.00042027,120]
[394476434,1763617492499,151.0,0.00042027,120]
[394476435,1763617492933,151.0,0.00042027,120]
[394476436,1763617493232,151.0,0.00042027,120]
[394476437,1763617493514,151.0,0.00042027,120]
[394476438,1763617493868,151.0,0.00042027,120]
[394476439,1763617494208,151.0,0.00042027,120]
[394476440,1763617494236,-10000.01,0.00016034,2]
[394476441,1763617494321,5520.0,0.000517,120]
[394476442,1763617494487,151.0,0.00042027,120]
[394476443,1763617494539,5520.0,0.000508,120]
[394476444,1763617494807,151.0,0.00042027,120]
[394476445,1763617502426,1000.0,0.00054795,30]
[394476446,1763617502784,163.376956,0.0003095,31]
[394476447,1763617506266,150.0,0.00054794,30]
[394476448,1763617507547,150.0,0.00054794,30]
[394476449,1763617510581,151.0,0.0003095,31]
[394476450,1763617510846,151.0,0.000395,120]
[394476451,1763617511143,151.0,0.000395,120]
[394476452,1763617512685,217.54708396,0.00054069,120]
[394476453,1763617512981,217.54708396,0.00054456,120]
[394476454,1763617513273,217.54708396,0.00054593,120]
[394476455,1763617514547,151.0,0.00042027,35]
[394476456,1763617514679,151.0,0.00042027,35]
[394476457,1763617515000,151.0,0.00042027,35]
[394476458,1763617517736,150.0,0.00054794,30]
[394476459,1763617517785,151.0,0.0003095,31]
[394476460,1763617518115,151.0,0.000395,120]
[394476461,1763617518406,151.0,0.000395,120]
[394476462,1763617519935,151.0,0.0003095,31]
[394476463,1763617520222,151.0,0.000395,120]
[394476464,1763617520519,151.0,0.000395,120]
[394476465,1763617525429,221.525078,0.00042027,35]
[394476466,1763617525781,221.525078,0.00042027,35]
[394476467,1763617525831,151.0,0.00042027,35]
[394476468,1763617525949,5520.0,0.000516,120]
[394476469,1763617526125,221.525078,0.00042027,35]
[394476470,1763617526176,151.0,0.00042027,35]
[394476471,1763617526217,5520.0,0.000507,120]
[394476472,1763617526415,151.0,0.00042027,35]
[394476473,1763617526613,221.525078,0.00042027,35]
[394476474,1763617526706,151.0,0.00042027,35]
[394476475,1763617526918,221.525078,0.00042027,35]
[394476476,1763617526982,151.0,0.00042027,35]
[394476477,1763617527142,151.0,0.00042027,35]
[394476478,1763617527195,207.155837,0.0003095,31]
[394476479,1763617527240,221.525078,0.00042027,35]
[394476480,1763617527286,210.53232,0.00042027,35]
[394476481,1763617527444,151.0,0.00042027,35]
[394476482,1763617527578,221.525078,0.00042027,35]
[394476483,1763617527804,151.0,0.00042027,35]
[394476484,1763617527894,221.525078,0.00042027,35]
[394476485,1763617528106,151.0,0.00042027,35]
[394476486,1763617528194,221.525078,0.00042027,35]
[394476487,1763617528415,151.0,0.00042027,35]
[394476488,1763617528495,221.525078,0.00042027,35]
[394476489,1763617528715,151.0,0.00042027,35]
[394476490,1763617528897,221.525078,0.00042027,35]
[394476491,1763617529019,151.0,0.00042027,35]
[394476492,1763617529075,260.15461888,0.00042027,120]
[394476493,1763617529120,321.9930698,0.00042027,120]
[394476494,1763617529199,221.525078,0.00042027,35]
[394476495,1763617529331,151.0,0.00042027,35]
[394476496,1763617529523,221.525078,0.00042027,35]
[394476497,1763617529610,151.0,0.00042027,35]
[394476498,1763617529849,221.525078,0.00042027,35]
[394476499,1763617530188,221.525078,0.00042027,35]
[394476500,1763617530457,151.0,0.00042027,35]
[394476501,1763617530502,221.525078,0.00042027,35]
[394476502,1763617530552,151.0,0.00042027,35]
[394476503,1763617530977,221.525078,0.00042027,35]
[394476504,1763617531023,285.496672,0.00042027,35]
[394476505,1763617531176,221.525078,0.00042027,35]
[394476506,1763617531355,264.88955488,0.00042027,120]
[394476507,1763617531502,221.525078,0.00042027,35]
[394476508,1763617531797,221.525086,0.00042027,35]
[394476509,1763617532540,168.438031,0.0003095,31]
[394476510,1763617534467,151.0,0.0003095,31]
[394476511,1763617534769,151.0,0.000395,120]
[394476512,1763617535052,151.0,0.000395,120]
[394476513,1763617536098,151.0,0.0003095,31]
[394476514,1763617536404,151.0,0.000395,120]
[394476515,1763617536517,152.52781687,0.00054023,30]
[394476516,1763617536566,1000.0,0.00052928,30]
[394476517,1763617536624,1000.0,0.00053443,30]
[394476518,1763617536710,151.0,0.000395,120]
[394476519,1763617536809,1000.0,0.00054236,30]
[394476520,1763617536992,1000.0,0.00054774,30]
[394476521,1763617537199,1000.0,0.00054458,30]
[394476522,1763617537559,1000.0,0.00053026,30]
[394476523,1763617537711,1000.0,0.00053287,30]
[394476524,1763617537758,188.739092,0.00042027,35]
[394476525,1763617537799,151.0,0.0003095,31]
[394476526,1763617538021,1000.0,0.0005355,30]
[394476527,1763617538064,151.0,0.000395,120]
[394476528,1763617538119,188.739092,0.00042027,35]
[394476529,1763617538189,1000.0,0.00054783,30]
[394476530,1763617538389,151.0,0.000395,120]
[394476531,1763617538440,188.739092,0.00042027,35]
[394476532,1763617538898,188.739092,0.00042027,35]
[394476533,1763617539197,188.739092,0.00042027,35]
[394476534,1763617539440,180.05,0.000421,60]
[394476535,1763617539502,188.739092,0.00042027,35]
[394476536,1763617539934,188.739092,0.00042027,35]
[394476537,1763617540055,540.16,0.000449,60]
[394476538,1763617540232,188.739092,0.00042027,35]
[394476539,1763617540567,188.739092,0.00042027,35]
[394476540,1763617540863,188.739092,0.00042027,35]
[394476541,1763617541177,188.739092,0.00042027,35]
[394476542,1763617541245,618.05071932,0.00054208,30]
[394476543,1763617541811,188.739092,0.00042027,35]
[394476544,1763617542109,188.739092,0.00042027,35]
[394476545,1763617542406,188.739092,0.00042027,35]
[394476546,1763617542702,188.739092,0.00042027,35]
[394476547,1763617543014,188.739092,0.00042027,35]
[394476548,1763617543302,188.739092,0.00042027,35]
[394476549,1763617543623,188.739092,0.00042027,35]
[394476550,1763617543686,303.61430678,0.00053143,30]
[394476551,1763617543916,188.739092,0.00042027,35]
[394476552,1763617544285,188.739088,0.00042027,35]
[394476553,1763617557518,5520.0,0.000516,120]
[394476554,1763617557745,5520.0,0.000507,120]
[394476555,1763617562887,200.0,0.00042027,30]
[394476556,1763617563160,10000.01,0.00015887,2]
[394476557,1763617563184,10000.01,0.00015887,2]
[394476558,1763617563210,479.89,0.00015887,2]
[394476559,1763617566231,239.338784,0.0003095,31]
[394476560,1763617566505,239.338784,0.000395,120]
[394476561,1763617566789,239.338784,0.000395,120]
[394476562,1763617567116,185.610119,0.0003095,31]
[394476563,1763617567531,185.610119,0.000395,120]
[394476564,1763617567818,185.610119,0.000395,120]
[394476565,1763617568051,239.338784,0.0003095,31]
[394476566,1763617568386,239.338784,0.000395,120]
[394476567,1763617568695,239.338784,0.000395,120]
[394476568,1763617568778,185.610119,0.0003095,31]
[394476569,1763617569076,185.610119,0.000395,120]
[394476570,1763617569113,8219.14276,7.945e-05,2]
[394476571,1763617569389,185.610119,0.000395,120]
[394476572,1763617569592,190.955082,0.0003095,31]
[394476573,1763617569674,239.338784,0.0003095,31]
[394476574,1763617569879,190.955082,0.000395,120]
[394476575,1763617570178,190.955082,0.000395,120]
[394476576,1763617570293,239.338784,0.000395,120]
[394476577,1763617570415,185.610119,0.0003095,31]
[394476578,1763617570520,239.338784,0.000395,120]
[394476579,1763617570698,185.610119,0.000395,120]
[394476580,1763617571033,185.610119,0.000395,120]
[394476581,1763617571253,190.955082,0.0003095,31]
[394476582,1763617571413,239.338784,0.0003095,31]
[394476583,1763617571551,190.955082,0.000395,120]
[394476584,1763617571707,239.338784,0.000395,120]
[394476585,1763617571892,190.955082,0.000395,120]
[394476586,1763617571972,185.610119,0.0003095,31]
[394476587,1763617572057,239.338781,0.000395,120]
[394476588,1763617572237,185.610119,0.000395,120]
[394476589,1763617572288,309.42722041,0.00042027,120]
[394476590,1763617572523,185.610127,0.000395,120]
[394476591,1763617572805,190.955082,0.0003095,31]
[394476592,1763617573546,190.955082,0.000395,120]
[394476593,1763617574264,190.955082,0.000395,120]
[394476594,1763617575444,190.955082,0.0003095,31]
[394476595,1763617575749,190.955082,0.000395,120]
[394476596,1763617576056,190.955073,0.000395,120]
[394476597,1763617580899,151.0,0.0003095,31]
[394476598,1763617581191,151.0,0.000395,120]
[394476599,1763617581539,151.0,0.000395,120]
[394476600,1763617582768,151.0,0.0003095,31]
[394476601,1763617583113,151.0,0.000395,120]
[394476602,1763617583398,157.684458,0.000395,120]
[394476603,1763617584777,151.0,0.0003095,31]
[394476604,1763617585144,230.476582,0.000395,120]
[394476605,1763617586055,151.0,0.0003095,31]
[394476606,1763617586295,350.686971,0.0003095,31]
[394476607,1763617586364,151.0,0.000395,120]
[394476608,1763617586592,350.686971,0.000395,120]
[394476609,1763617586731,151.0,0.000395,120]
[394476610,1763617586880,350.686971,0.000395,120]
[394476611,1763617587705,151.0,0.0003095,31]
[394476612,1763617587779,350.686971,0.0003095,31]
[394476613,1763617587853,151.0,0.0003095,31]
[394476614,1763617588108,350.686971,0.000395,120]
[394476615,1763617588233,170.278773,0.0003095,31]
[394476616,1763617588308,151.0,0.000395,120]
[394476617,1763617588402,350.686971,0.000395,120]
[394476618,1763617588475,151.0,0.000395,120]
[394476619,1763617588559,162.408581,0.000395,120]
[394476620,1763617588643,170.278773,0.000395,120]
[394476621,1763617588834,170.278773,0.000395,120]
[394476622,1763617589123,151.0,0.0003095,31]
[394476623,1763617589197,5520.0,0.000517,120]
[394476624,1763617589367,5520.0,0.000508,120]
[394476625,1763617589455,350.686971,0.0003095,31]
[394476626,1763617589553,269.781868,0.000395,120]
[394476627,1763617589729,170.278773,0.0003095,31]
[394476628,1763617589805,350.686971,0.000395,120]
[394476629,1763617589889,212.752877,0.0003095,31]
[394476630,1763617590028,350.686971,0.000395,120]
[394476631,1763617590120,170.278773,0.000395,120]
[394476632,1763617590195,212.752877,0.000395,120]
[394476633,1763617590312,170.278773,0.000395,120]
[394476634,1763617590400,212.752877,0.000395,120]
[394476635,1763617590999,350.686971,0.0003095,31]
[394476636,1763617591285,350.686971,0.000395,120]
[394476637,1763617591355,170.278773,0.0003095,31]
[394476638,1763617591428,212.752877,0.0003095,31]
[394476639,1763617591570,350.686969,0.000395,120]
[394476640,1763617591639,170.278773,0.000395,120]
[394476641,1763617591716,212.752877,0.000395,120]
[394476642,1763617591942,170.278773,0.000395,120]
[394476643,1763617592028,212.752877,0.000395,120]
[394476644,1763617592875,170.278773,0.0003095,31]
[394476645,1763617592948,212.752877,0.0003095,31]
[394476646,1763617593182,170.278773,0.000395,120]
[394476647,1763617593258,212.752877,0.000395,120]
[394476648,1763617593685,170.278769,0.000395,120]
[394476649,1763617593761,212.752877,0.000395,120]
[394476650,1763617594319,151.0,0.00038356,120]
[394476651,1763617594462,182.590976,0.0003095,31]
[394476652,1763617594680,212.752877,0.0003095,31]
[394476653,1763617594773,151.0,0.00038356,120]
[394476654,1763617594850,182.590976,0.000395,120]
[394476655,1763617594925,212.752877,0.000395,120]
[394476656,1763617595077,182.590976,0.000395,120]
[394476657,1763617595150,151.0,0.00038356,120]
[394476658,1763617595221,212.752882,0.000395,120]
[394476659,1763617595344,151.0,0.000395,120]
[394476660,1763617595618,151.0,0.000395,120]
[394476661,1763617595699,151.0,0.0003095,31]
[394476662,1763617595817,151.98517644,0.00053666,30]
[394476663,1763617595891,1000.0,0.00052976,30]
[394476664,1763617595965,1000.0,0.00054776,30]
[394476665,1763617596043,227.7146,0.0003095,31]
[394476666,1763617596125,182.590976,0.0003095,31]
[394476667,1763617596202,151.0,0.000395,120]
[394476668,1763617596280,261.732698,0.00038356,120]
[394476669,1763617596359,1000.0,0.00054698,30]
[394476670,1763617596433,182.590976,0.000395,120]
[394476671,1763617596729,1000.0,0.00052892,30]
[394476672,1763617597114,1000.0,0.00054619,30]
[394476673,1763617597353,182.590976,0.000395,120]
[394476674,1763617597430,1000.0,0.00052697,30]
[394476675,1763617597689,182.590976,0.0003095,31]
[394476676,1763617597817,182.590976,0.000395,120]
[394476677,1763617597996,182.590976,0.000395,120]
[394476678,1763617598663,469.012529,0.0003095,31]
[394476679,1763617598955,469.012529,0.000395,120]
[394476680,1763617599047,182.590976,0.0003095,31]
[394476681,1763617599249,469.012529,0.000395,120]
[394476682,1763617599331,182.590976,0.000395,120]
[394476683,1763617599606,182.590984,0.000395,120]
[394476684,1763617600155,469.012529,0.0003095,31]
[394476686,1763617600439,469.012529,0.000395,120]
[394476687,1763617600725,469.012529,0.000395,120]
[394476688,1763617601610,469.012529,0.0003095,31]
[394476689,1763617601907,469.012529,0.000395,120]
[394476690,1763617602202,469.012529,0.000395,120]
[394476691,1763617603091,469.012529,0.0003095,31]
[394476692,1763617603403,469.012529,0.000395,120]
[394476693,1763617603840,469.012535,0.000395,120]
[394476694,1763617606066,277.160475,0.0003095,31]
[394476695,1763617606603,151.0,0.0003095,31]
[394476696,1763617607123,151.0,0.000395,120]
[394476697,1763617607417,151.0,0.000395,120]
[394476698,1763617608315,151.0,0.0003095,31]
[394476699,1763617608604,151.0,0.000395,120]
[394476700,1763617608915,151.0,0.000395,120]
[394476701,1763617613553,441.70301475,0.00042027,120]
[394476702,1763617620752,5520.0,0.000517,120]
[394476703,1763617620945,5520.0,0.000508,120]
[394476704,1763617624688,2173.59,0.000386,30]
[394476705,1763617624865,170.0,1.5e-06,2]
[394476706,1763617625119,2173.59,0.00042,30]
[394476707,1763617626120,151.0,0.0003095,31]
[394476708,1763617626433,165.24181,0.000395,120]
[394476709,1763617627938,150.0,0.00054794,120]
[394476738,1763617633265,217.54708397,0.00054543,120]
[394476878,1763617642342,151.0,0.0003095,31]
[394476883,1763617642627,151.0,0.000395,120]
[394476885,1763617642706,151.0,0.0003095,31]
[394476891,1763617643016,151.0,0.000395,120]
[394476893,1763617643089,151.0,0.000395,120]
[394476898,1763617643309,151.0,0.000395,120]
[394476908,1763617644041,151.0,0.0003095,31]
[394476912,1763617644224,151.0,0.0003095,31]
[394476915,1763617644355,151.0,0.000395,120]
[394476918,1763617644518,151.0,0.000395,120]
[394476930,1763617645214,210.514668,0.000395,120]
[394476954,1763617646698,151.0,0.0003095,31]
[394476964,1763617647269,151.0,0.0003095,31]
[394476966,1763617647341,151.0,0.000395,120]
[394476968,1763617647413,151.0,0.000395,120]
[394476971,1763617647526,151.0,0.000395,120]
[394476974,1763617647608,159.442282,0.000395,120]
[394476983,1763617648233,151.0,0.0003095,31]
[394476989,1763617648548,151.0,0.000395,120]
[394476994,1763617648850,151.0,0.0003095,31]
[394476996,1763617648915,151.0,0.000395,120]
[394477000,1763617649146,151.0,0.000395,120]
[394477006,1763617649436,164.773549,0.000395,120]
[394477016,1763617650093,151.0,0.0003095,31]
[394477022,1763617650438,151.0,0.000395,120]
[394477029,1763617650779,151.0,0.000395,120]
[394477036,1763617651201,155.661824,0.0003095,31]
[394477046,1763617651826,155.661824,0.000395,120]